lending/lending_fUSD_20250920
["ID","MTS","AMOUNT","RATE_DAILY","PERIOD"]
[386579536,1758408654552,-400.0,0.00024657,3]
[386579537,1758408654562,-400.0,0.00024657,3]
[386579538,1758408654571,-400.0,0.00024657,3]
[386579539,1758408654982,-400.0,0.00024657,3]
[386579540,1758408655027,-400.0,0.00024657,3]
[386579541,1758408655047,-488.07,0.00024657,3]
[386579542,1758408655057,-1555.21,0.00024657,3]
[386579543,1758408655068,-400.0,0.00024657,3]
[386579544,1758408655077,-400.0,0.00024657,3]
[386579545,1758408655086,-400.0,0.00024657,3]
[386579546,1758408655095,-400.0,0.00024657,3]
[386579547,1758408655105,-400.0,0.00024657,3]
[386579548,1758408655114,-400.0,0.00024657,3]
[386579549,1758408655124,-654.94,0.00024657,3]
[386579550,1758408655133,-400.0,0.00024657,3]
[386579551,1758408655142,-400.0,0.00024657,3]
[386579552,1758408655151,-151.0,0.00024657,7]
[386579553,1758408655161,-263.260771,0.00024657,7]
[386579554,1758408655170,-400.0,0.00024657,3]
[386579555,1758408655180,-400.0,0.00024657,3]
[386579556,1758408655189,-400.0,0.00024657,3]
[386579557,1758408655198,-1456.12,0.00024657,3]
[386579558,1758408655207,-400.0,0.00024657,3]
[386579559,1758408655216,-400.0,0.00024657,3]
[386579560,1758408655226,-400.0,0.00024657,3]
[386579561,1758408655235,-400.0,0.00024657,3]
[386579562,1758408655244,-1983.41,0.00024657,3]
[386579563,1758408655253,-400.0,0.00024657,3]
[386579564,1758408655262,-535.63904215,0.00024657,3]
[386579565,1758408655271,-400.0,0.00024657,3]
[386579566,1758408655280,-2108.51,0.00024657,3]
[386579567,1758408655289,-400.0,0.00024657,3]
[386579568,1758408655298,-400.0,0.00024657,3]
[386579569,1758408655307,-400.0,0.00024657,3]
[386579570,1758408655316,-412.31,0.00024657,3]
[386579571,1758408655326,-889.09,0.00024657,3]
[386579572,1758408655335,-400.0,0.00024657,3]
[386579573,1758408655344,-1092.22,0.00024657,3]
[386579574,1758408655354,-1735.83,0.00024657,2]
[386579575,1758408655364,-400.0,0.00024657,3]
[386579576,1758408655374,-1735.83,0.00024657,2]
[386579577,1758408655383,-1735.83,0.00024657,2]
[386579578,1758408655392,-1735.83,0.00024657,2]
[386579579,1758408655401,-674.48,0.00024657,3]
[386579580,1758408655410,-1735.83,0.00024657,2]
[386579581,1758408655420,-400.0,0.00024657,3]
[386579582,1758408655429,-1735.83,0.00024657,2]
[386579583,1758408655438,-400.0,0.00024657,3]
[386579584,1758408655447,-1735.83,0.00024657,2]
[386579585,1758408655457,-1735.83,0.00024657,2]
[386579586,1758408655466,-1735.83,0.00024657,2]
[386579587,1758408655475,-400.0,0.00024657,3]
[386579588,1758408655486,-1735.83,0.00024657,2]
[386579589,1758408655495,-1735.83,0.00024657,2]
[386579590,1758408655505,-1735.83,0.00024657,2]
[386579591,1758408655514,-1735.83,0.00024657,2]
[386579592,1758408655523,-1735.83,0.00024657,2]
[386579593,1758408655532,-400.0,0.00024657,3]
[386579594,1758408655542,-1735.83,0.00024657,2]
[386579595,1758408655551,-400.0,0.00024657,3]
[386579596,1758408655560,-1735.83,0.00024657,2]
[386579597,1758408655570,-151.0,0.00024657,7]
[386579598,1758408655579,-1735.83,0.00024657,2]
[386579599,1758408655588,-151.0,0.00024657,7]
[386579600,1758408655598,-400.0,0.00024657,3]
[386579601,1758408655608,-400.0,0.00024657,3]
[386579602,1758408655617,-151.0,0.00024657,7]
[386579603,1758408655627,-832.92,0.00024657,3]
[386579604,1758408655636,-400.0,0.00024657,3]
[386579605,1758408655645,-407.04968219,0.00024657,3]
[386579606,1758408655654,-400.0,0.00024657,3]
[386579607,1758408655664,-400.0,0.00024657,3]
[386579608,1758408655675,-1258.73,0.00024657,3]
[386579609,1758408655686,-400.0,0.00024657,3]
[386579610,1758408655696,-853.24,0.00024657,3]
[386579611,1758408655706,-400.0,0.00024657,3]
[386579612,1758408655718,-400.0,0.00024657,3]
[386579613,1758408655729,-237.616497,0.00024657,7]
[386579614,1758408655739,-507.67,0.00024657,3]
[386579615,1758408655748,-400.0,0.00024657,3]
[386579616,1758408655758,-400.0,0.00024657,3]
[386579617,1758408655769,-151.0,0.00024657,7]
[386579618,1758408655783,-151.0,0.00024657,7]
[386579619,1758408655792,-151.0,0.00024657,7]
[386579620,1758408655802,-400.0,0.00024657,3]
[386579621,1758408655812,-152.651977,0.00024657,7]
[386579622,1758408655823,-400.0,0.00024657,3]
[386579623,1758408655832,-443.24489428,0.00024657,3]
[386579624,1758408655842,-440.02,0.00024657,3]
[386579625,1758408655852,-400.0,0.00024657,3]
[386579626,1758408655864,-400.0,0.00024657,2]
[386579627,1758408655874,-400.0,0.00024657,3]
[386579628,1758408655884,-1380.25,0.00024657,3]
[386579629,1758408655893,-507.01,0.00024657,3]
[386579630,1758408655903,-163.760256,0.00024657,7]
[386579631,1758408655913,-840.29,0.00024657,3]
[386579632,1758408655923,-400.0,0.00024657,3]
[386579633,1758408655932,-400.0,0.00024657,3]
[386579634,1758408655942,-844.98,0.00024657,3]
[386579635,1758408655952,-400.0,0.00024657,3]
[386579636,1758408655962,-709.42,0.00024657,3]
[386579637,1758408655972,-409.41,0.00024657,3]
[386579638,1758408655982,-400.0,0.00024657,3]
[386579639,1758408655994,-400.0,0.00024657,3]
[386579640,1758408656005,-1518.81,0.00024657,3]
[386579641,1758408656017,-1518.81,0.00024657,3]
[386579642,1758408656026,-1518.81,0.00024657,3]
[386579643,1758408656035,-1518.81,0.00024657,3]
[386579644,1758408656044,-1518.81,0.00024657,3]
[386579645,1758408656054,-1518.81,0.00024657,3]
[386579646,1758408656063,-1410.18,0.00024657,3]
[386579647,1758408656072,-1518.81,0.00024657,3]
[386579648,1758408656081,-1579.21,0.00024657,3]
[386579649,1758408656090,-1518.81,0.00024657,3]
[386579650,1758408656101,-400.0,0.00024657,3]
[386579651,1758408656114,-1518.81,0.00024657,3]
[386579652,1758408656125,-1518.81,0.00024657,3]
[386579653,1758408656137,-400.0,0.00024657,3]
[386579654,1758408656147,-1518.81,0.00024657,3]
[386579655,1758408656156,-1518.81,0.00024657,3]
[386579656,1758408656166,-1518.81,0.00024657,3]
[386579657,1758408656176,-1366.85,0.00024657,3]
[386579658,1758408656185,-1518.81,0.00024657,3]
[386579659,1758408656195,-1835.57,0.00024657,3]
[386579660,1758408656204,-400.0,0.00024657,3]
[386579661,1758408656213,-1518.81,0.00024657,3]
[386579662,1758408656223,-1518.81,0.00024657,3]
[386579663,1758408656232,-1518.81,0.00024657,3]
[386579664,1758408656241,-400.0,0.00024657,3]
[386579665,1758408656250,-1518.81,0.00024657,3]
[386579666,1758408656261,-1518.81,0.00024657,3]
[386579667,1758408656271,-151.0,0.00024657,7]
[386579668,1758408656281,-1518.81,0.00024657,3]
[386579669,1758408656290,-151.0,0.00024657,7]
[386579670,1758408656300,-1518.81,0.00024657,3]
[386579671,1758408656310,-151.0,0.00024657,7]
[386579672,1758408656319,-1518.81,0.00024657,3]
[386579673,1758408656328,-1518.81,0.00024657,3]
[386579674,1758408656337,-151.0,0.00024657,7]
[386579675,1758408656347,-400.0,0.00024657,3]
[386579676,1758408656357,-1519.04059659,0.00024657,3]
[386579677,1758408656368,-151.0,0.00024657,7]
[386579678,1758408656377,-151.0,0.00024657,7]
[386579679,1758408656387,-400.0,0.00024657,3]
[386579680,1758408656396,-151.0,0.00024657,7]
[386579681,1758408656406,-151.0,0.00024657,7]
[386579682,1758408656416,-615.22,0.00024657,3]
[386579683,1758408656428,-481.36,0.00024657,3]
[386579684,1758408656438,-400.0,0.00024657,3]
[386579685,1758408656447,-400.0,0.00024657,3]
[386579686,1758408656457,-1370.79,0.00024657,3]
[386579687,1758408656467,-423.57152927,0.00024657,3]
[386579688,1758408656476,-1545.16,0.00024657,3]
[386579689,1758408656485,-400.0,0.00024657,3]
[386579690,1758408656495,-400.0,0.00024657,3]
[386579691,1758408656504,-400.0,0.00024657,3]
[386579692,1758408656513,-400.0,0.00024657,3]
[386579693,1758408656523,-777.45,0.00024657,3]
[386579694,1758408656532,-405.47590061,0.00024657,3]
[386579695,1758408656541,-1156.09,0.00024657,3]
[386579696,1758408656551,-416.8026412,0.00024657,3]
[386579697,1758408656560,-519.21,0.00024657,3]
[386579698,1758408656569,-400.0,0.00024657,3]
[386579699,1758408656578,-400.0,0.00024657,3]
[386579700,1758408656588,-151.0,0.00024657,7]
[386579701,1758408656597,-151.0,0.00024657,7]
[386579702,1758408656607,-1507.97,0.00024657,3]
[386579703,1758408656616,-400.0,0.00024657,3]
[386579704,1758408656625,-1392.46,0.00024657,3]
[386579705,1758408656634,-400.0,0.00024657,3]
[386579706,1758408656644,-400.0,0.00024657,3]
[386579707,1758408656653,-400.0,0.00024657,3]
[386579708,1758408656663,-1608.73,0.00024657,3]
[386579709,1758408656672,-400.0,0.00024657,3]
[386579710,1758408656681,-400.0,0.00024657,3]
[386579711,1758408656692,-409.69,0.00024657,3]
[386579712,1758408656701,-728.64,0.00024657,3]
[386579713,1758408656711,-805.12,0.00024657,3]
[386579714,1758408656720,-400.56790727,0.00024657,3]
[386579715,1758408656729,-400.0,0.00024657,3]
[386579716,1758408656739,-1120.62,0.00024657,3]
[386579717,1758408656748,-400.0,0.00024657,3]
[386579718,1758408656757,-400.0,0.00024657,3]
[386579719,1758408656767,-1210.83,0.00024657,3]
[386579720,1758408656780,-400.0,0.00024657,3]
[386579721,1758408656789,-530.29,0.00024657,3]
[386579722,1758408656799,-3266.16,0.00024657,3]
[386579723,1758408656810,-400.0,0.00024657,3]
[386579724,1758408656820,-400.0,0.00024657,3]
[386579725,1758408656830,-1299.62,0.00024657,3]
[386579726,1758408656839,-400.0,0.00024657,3]
[386579727,1758408656851,-433.32,0.00024657,3]
[386579728,1758408656862,-400.0,0.00024657,3]
[386579729,1758408656872,-1154.56,0.00024657,3]
[386579730,1758408656883,-446.27,0.00024657,3]
[386579731,1758408656892,-1316.79,0.00024657,3]
[386579732,1758408656902,-400.0,0.00024657,3]
[386579733,1758408656911,-1530.42,0.00024657,3]
[386579734,1758408656920,-1004.06,0.00024657,3]
[386579735,1758408656930,-400.0,0.00024657,3]
[386579736,1758408656939,-400.0,0.00024657,3]
[386579737,1758408656949,-400.0,0.00024657,3]
[386579738,1758408656959,-400.0,0.00024657,3]
[386579739,1758408656969,-819.33,0.00024657,3]
[386579740,1758408656979,-1288.9,0.00024657,3]
[386579741,1758408656988,-400.0,0.00024657,3]
[386579742,1758408656998,-614.12,0.00024657,3]
[386579743,1758408657007,-400.0,0.00024657,3]
[386579744,1758408657017,-1354.02,0.00024657,3]
[386579745,1758408657027,-650.0,0.00024657,3]
[386579746,1758408657036,-1051.19,0.00024657,3]
[386579747,1758408657045,-1578.63,0.00024657,3]
[386579748,1758408657055,-400.0,0.00024657,3]
[386579749,1758408657064,-1303.79,0.00024657,3]
[386579750,1758408657074,-400.0,0.00024657,3]
[386579751,1758408657083,-400.0,0.00024657,3]
[386579752,1758408657092,-400.0,0.00024657,3]
[386579753,1758408657101,-400.0,0.00024657,3]
[386579754,1758408657111,-151.0,0.00024657,7]
[386579755,1758408657120,-400.0,0.00024657,3]
[386579756,1758408657129,-151.0,0.00024657,7]
[386579757,1758408657139,-605.85,0.00024657,3]
[386579758,1758408657148,-22920.83,0.00024657,3]
[386579759,1758408657157,-1144.49,0.00024657,3]
[386579760,1758408657166,-400.0,0.00024657,3]
[386579761,1758408657175,-400.0,0.00024657,3]
[386579762,1758408657184,-400.0,0.00024657,3]
[386579763,1758408657195,-151.0,0.00024657,7]
[386579764,1758408657206,-151.0,0.00024657,7]
[386579765,1758408657215,-151.0,0.00024657,7]
[386579766,1758408657228,-1222.57,0.00024657,3]
[386579767,1758408657238,-151.0,0.00024657,7]
[386579768,1758408657250,-431.56,0.00024657,3]
[386579769,1758408657260,-548.26,0.00024657,3]
[386579770,1758408657270,-400.0,0.00024657,3]
[386579771,1758408657279,-584.45,0.00024657,3]
[386579772,1758408657289,-400.0,0.00024657,3]
[386579773,1758408657299,-977.06,0.00024657,3]
[386579774,1758408657309,-409.25,0.00024657,3]
[386579775,1758408657319,-400.0,0.00024657,3]
[386579776,1758408657330,-1097.35,0.00024657,3]
[386579777,1758408657339,-400.0,0.00024657,3]
[386579778,1758408657351,-865.29,0.00024657,3]
[386579779,1758408657361,-400.0,0.00024657,3]
[386579780,1758408657370,-1189.23,0.00024657,3]
[386579781,1758408657380,-1315.76,0.00024657,3]
[386579782,1758408657390,-808.37,0.00024657,3]
[386579783,1758408657400,-400.0,0.00024657,3]
[386579784,1758408657409,-1590.96,0.00024657,3]
[386579785,1758408657418,-400.0,0.00024657,3]
[386579786,1758408657430,-1441.85,0.00024657,3]
[386579787,1758408657439,-400.0,0.00024657,3]
[386579788,1758408657448,-1271.78,0.00024657,3]
[386579789,1758408657458,-400.0,0.00024657,3]
[386579790,1758408657467,-400.0,0.00024657,3]
[386579791,1758408657478,-400.0,0.00024657,3]
[386579792,1758408657488,-400.0,0.00024657,3]
[386579793,1758408657499,-151.0,0.00024657,7]
[386579794,1758408657508,-151.0,0.00024657,7]
[386579795,1758408657517,-400.0,0.00024657,3]
[386579796,1758408657526,-151.0,0.00024657,7]
[386579797,1758408657535,-151.0,0.00024657,7]
[386579798,1758408657545,-151.0,0.00024657,7]
[386579799,1758408657555,-1130.44,0.00024657,3]
[386579800,1758408657564,-151.0,0.00024657,7]
[386579801,1758408657574,-151.0,0.00024657,7]
[386579802,1758408657583,-151.0,0.00024657,7]
[386579803,1758408657593,-400.0,0.00024657,3]
[386579804,1758408657602,-400.0,0.00024657,3]
[386579805,1758408657611,-400.0,0.00024657,3]
[386579806,1758408657621,-400.0,0.00024657,3]
[386579807,1758408657631,-400.0,0.00024657,3]
[386579808,1758408657640,-1079.73,0.00024657,3]
[386579809,1758408657650,-400.0,0.00024657,3]
[386579810,1758408657660,-400.0,0.00024657,3]
[386579811,1758408657670,-400.0,0.00024657,3]
[386579812,1758408657679,-400.0,0.00024657,3]
[386579813,1758408657689,-400.0,0.00024657,3]
[386579814,1758408657698,-664.46017069,0.00024657,3]
[386579815,1758408658916,-704.30982931,0.00024657,3]
[386579816,1758408658927,-667.43,0.00024657,3]
[386579817,1758408658937,-400.0,0.00024657,3]
[386579818,1758408658947,-400.0,0.00024657,3]
[386579819,1758408658957,-88.66017069,0.00024657,3]
[386579820,1758408659021,-311.33982931,0.00024657,3]
[386579821,1758408659031,-400.0,0.00024657,3]
[386579822,1758408659042,-400.0,0.00024657,3]
[386579823,1758408659052,-2968.32,0.00024657,3]
[386579824,1758408659062,-482.41,0.00024657,3]
[386579825,1758408659072,-400.0,0.00024657,3]
[386579826,1758408659081,-400.0,0.00024657,3]
[386579827,1758408659091,-328.80746367,0.00024657,3]
[386579828,1758408659111,-71.19253633,0.00024657,3]
[386579829,1758408659121,-212.05746367,0.00024657,3]
[386579840,1758408780413,-333.54772373,0.00018841,2]
[386579846,1758408930762,-300.0,0.0001884,2]
[386579847,1758408930788,-1200.0,0.0001884,2]
[386579848,1758408930813,-2900.0,0.00018841,2]
[386579858,1758409026862,250.0,0.00015,2]
[386579859,1758409028899,300.0,0.00017,2]
[386579866,1758409035992,186.89,0.00018016,2]
[386580063,1758409288267,800.0,0.00024657,120]
[386580067,1758409294715,189.95,0.00027665,120]
[386580089,1758409342584,400.0,0.00024657,120]
[386580198,1758409555928,158.99,0.00011022,2]
[386580257,1758409832444,-602.45166163,0.00018829,2]
[386580258,1758409832456,-597.54833837,0.00018829,2]
[386580259,1758409832466,-300.0,0.00018829,2]
[386580260,1758409832476,-300.0,0.00018829,2]
[386580261,1758409832485,-151.0,0.0001883,2]
[386580262,1758409832495,-151.0,0.0001883,2]
[386580263,1758409832505,-151.0,0.0001883,2]
[386580264,1758409832515,-151.0,0.0001883,2]
[386580265,1758409832525,-151.0,0.0001883,2]
[386580266,1758409832535,-151.0,0.0001883,2]
[386580267,1758409832544,-151.0,0.0001883,2]
[386580268,1758409832554,-151.0,0.0001883,2]
[386580269,1758409832563,-151.0,0.0001883,2]
[386580270,1758409832573,-151.0,0.0001883,2]
[386580271,1758409832583,-151.0,0.0001883,2]
[386580272,1758409832593,-151.0,0.0001883,2]
[386580273,1758409832602,-151.0,0.0001883,2]
[386580274,1758409832612,-151.0,0.0001883,2]
[386580275,1758409832621,-151.0,0.0001883,2]
[386580276,1758409832631,-151.0,0.00018841,2]
[386580277,1758409832642,-68.12779476,0.00019,2]
[386580278,1758409832747,-281.87220524,0.00019,2]
[386580279,1758409832756,-437.50284661,0.00019303,2]
[386580281,1758409832869,-157.22915855,0.00019303,2]
[386580282,1758409832879,-594.73200515,0.00019303,2]
[386580283,1758409832889,-151.0,0.00019803,2]
[386580285,1758409832899,-1524.19,0.0002,2]
[386580287,1758409832909,-2000.0,0.0002,3]
[386580288,1758409832918,-687.889,0.0002,3]
[386580290,1758409832927,-150.0,0.00020327,2]
[386580291,1758409832936,-150.0,0.00020347,2]
[386580292,1758409832946,-12500.0,0.00020359,2]
[386580293,1758409832955,-420.0,0.00020527,2]
[386580295,1758409832965,-6707.49515864,0.00020568,2]
[386580296,1758409832976,-3965.95484136,0.00020568,2]
[386580297,1758409832986,-215.27,0.0002057,2]
[386580299,1758409832995,-12500.0,0.00020622,2]
[386580300,1758409833005,-1680.0,0.00020627,2]
[386580301,1758409833014,-150.0,0.00020628,2]
[386580302,1758409833025,-2225.46,0.00020726,2]
[386580303,1758409833035,-489.72701568,0.00020728,2]
[386580304,1758409833044,-150.0,0.00020983,2]
[386580305,1758409833054,-2634.64,0.00020995,2]
[386580306,1758409833064,-4850.0,0.00021003,4]
[386580307,1758409833073,-672.83,0.00021185,4]
[386580308,1758409833083,-5000.0,0.00021205,4]
[386580309,1758409833093,-5000.0,0.00021304,4]
[386580310,1758409833102,-2500.0,0.00021369,4]
[386580311,1758409833112,-5000.0,0.00021447,4]
[386580312,1758409833121,-500.0,0.00021643,2]
[386580313,1758409833131,-233.37093014,0.00021643,2]
[386580314,1758409833141,-4850.0,0.00021673,4]
[386580315,1758409833150,-18876.0,0.00021676,2]
[386580316,1758409833160,-4229.0,0.00021676,2]
[386580317,1758409833169,-898.0,0.00021676,2]
[386580318,1758409833180,-200.0,0.00021691,2]
[386580319,1758409833189,-2333.95,0.00021854,2]
[386580320,1758409833198,-400.0,0.00021917,2]
[386580321,1758409833207,-400.0,0.00021917,2]
[386580322,1758409833217,-400.0,0.00021917,2]
[386580323,1758409833226,-1006.35,0.00021917,2]
[386580324,1758409833235,-2888.66,0.00021917,2]
[386580325,1758409833245,-1544.95,0.00021917,2]
[386580326,1758409833254,-400.0,0.00021917,2]
[386580327,1758409833264,-400.0,0.00021917,2]
[386580328,1758409833274,-400.0,0.00021917,2]
[386580329,1758409833283,-400.0,0.00021917,2]
[386580330,1758409833292,-1635.64,0.00021917,2]
[386580331,1758409833303,-400.0,0.00021917,2]
[386580332,1758409833312,-2502.58,0.00021917,2]
[386580333,1758409833322,-400.0,0.00021917,2]
[386580334,1758409833333,-400.0,0.00021917,2]
[386580335,1758409833343,-400.0,0.00021917,2]
[386580336,1758409833352,-400.0,0.00021917,2]
[386580337,1758409833362,-400.0,0.00021917,2]
[386580338,1758409833372,-661.82,0.00021917,2]
[386580339,1758409833381,-400.0,0.00021917,2]
[386580340,1758409833391,-1370.77,0.00021917,2]
[386580341,1758409833400,-400.0,0.00021917,2]
[386580342,1758409833410,-400.0,0.00021917,2]
[386580343,1758409833419,-1393.53,0.00021917,2]
[386580344,1758409833428,-461.8,0.00021917,2]
[386580345,1758409833438,-2064.86,0.00021917,2]
[386580346,1758409833447,-400.0,0.00021917,2]
[386580347,1758409833457,-400.0,0.00021917,2]
[386580348,1758409833467,-404.42,0.00021917,2]
[386580349,1758409833476,-400.0,0.00021917,2]
[386580350,1758409833487,-1335.27,0.00021917,2]
[386580351,1758409833497,-400.0,0.00021917,2]
[386580352,1758409833507,-400.0,0.00021917,2]
[386580353,1758409833516,-1740.35,0.00021917,2]
[386580354,1758409833529,-443.25,0.00021917,2]
[386580355,1758409833539,-650.25,0.00021917,2]
[386580356,1758409833549,-630.4,0.00021917,2]
[386580357,1758409833559,-1242.65,0.00021917,2]
[386580358,1758409833568,-848.26,0.00021917,2]
[386580359,1758409833579,-507.71,0.00021917,2]
[386580360,1758409833588,-407.01,0.00021917,2]
[386580361,1758409833598,-824.36,0.00021917,2]
[386580362,1758409833608,-400.0,0.00021917,2]
[386580363,1758409833618,-400.0,0.00021917,2]
[386580364,1758409833627,-1123.52,0.00021917,2]
[386580365,1758409833637,-459.02,0.00021917,2]
[386580366,1758409833646,-400.0,0.00021917,2]
[386580367,1758409833656,-1193.15,0.00021917,2]
[386580368,1758409833665,-1170.26,0.00021917,2]
[386580369,1758409833674,-400.0,0.00021917,2]
[386580370,1758409833684,-400.0,0.00021917,2]
[386580371,1758409833693,-5878.75,0.00021917,2]
[386580372,1758409833703,-400.0,0.00021917,2]
[386580373,1758409833712,-1519.98,0.00021917,2]
[386580374,1758409833722,-589.59,0.00021917,2]
[386580375,1758409833731,-1547.27,0.00021917,2]
[386580376,1758409833741,-400.0,0.00021917,2]
[386580377,1758409833751,-400.0,0.00021917,2]
[386580378,1758409833761,-400.0,0.00021917,2]
[386580379,1758409833771,-400.0,0.00021917,2]
[386580380,1758409833780,-939.03,0.00021917,2]
[386580381,1758409833790,-1363.64,0.00021917,2]
[386580382,1758409833800,-1437.73,0.00021917,2]
[386580383,1758409833809,-5000.0,0.00021918,2]
[386580384,1758409833820,-432.3803914,0.00021927,2]
[386580385,1758409833829,-187.11547617,0.00021927,2]
[386580386,1758409833839,-150.0,0.00021928,2]
[386580387,1758409833848,-29155.14606572,0.00021928,2]
[386580388,1758409833861,-10482.72173724,0.00021928,2]
[386580389,1758409833873,-16983.98219704,0.00021928,2]
[386580390,1758409833883,-1000.0,0.0002193,2]
[386580391,1758409833892,-796.94914012,0.0002197,4]
[386580392,1758409833904,-1703.05085988,0.0002197,4]
[386580393,1758409833913,-152.0,0.00022,2]
[386580394,1758409833923,-485.0,0.00022,2]
[386580395,1758409833932,-1011.03,0.00022,2]
[386580396,1758409833942,-13138.54,0.00022043,2]
[386580397,1758409833951,-158.99,0.00022043,2]
[386580398,1758409833960,-600.0,0.0002211,2]
[386580399,1758409833970,-594.44,0.00022132,2]
[386580400,1758409833980,-189.95,0.00022132,2]
[386580401,1758409833990,-400.0,0.00022191,2]
[386580402,1758409833999,-400.0,0.00022191,2]
[386580403,1758409834008,-400.0,0.00022191,2]
[386580404,1758409834018,-1006.35,0.00022191,2]
[386580405,1758409834028,-2888.66,0.00022191,2]
[386580406,1758409834037,-1544.95,0.00022191,2]
[386580407,1758409834047,-400.0,0.00022191,2]
[386580408,1758409834057,-400.0,0.00022191,2]
[386580409,1758409834067,-400.0,0.00022191,2]
[386580410,1758409834076,-88.30185922,0.00022191,2]
[386580411,1758409834088,-311.69814078,0.00022191,2]
[386580412,1758409834097,-1635.64,0.00022191,2]
[386580413,1758409834107,-400.0,0.00022191,2]
[386580414,1758409834117,-1791.26261361,0.00022191,2]
[386580415,1758409840451,-1178.0,0.00021676,2]
[386580416,1758409840462,-400.0,0.00021917,2]
[386580417,1758409840472,-400.0,0.00021917,2]
[386580418,1758409840481,-400.0,0.00021917,2]
[386580419,1758409840491,-400.0,0.00021917,2]
[386580420,1758409840500,-400.0,0.00021917,2]
[386580421,1758409840510,-2647.94,0.00021917,2]
[386580422,1758409840519,-400.0,0.00021917,2]
[386580423,1758409840531,-174.43,0.00021918,2]
[386580424,1758409840541,-711.31738639,0.00022191,2]
[386580425,1758409840550,-400.0,0.00022191,2]
[386580426,1758409840560,-400.0,0.00022191,2]
[386580427,1758409840569,-303.78458914,0.00022191,2]
[386580428,1758409840579,-400.0,0.00022191,2]
[386580429,1758409840588,-400.0,0.00022191,2]
[386580430,1758409840598,-661.82,0.00022191,2]
[386580431,1758409840607,-400.0,0.00022191,2]
[386580432,1758409840616,-1370.77,0.00022191,2]
[386580433,1758409840625,-400.0,0.00022191,2]
[386580434,1758409840635,-400.0,0.00022191,2]
[386580435,1758409840644,-1393.53,0.00022191,2]
[386580436,1758409840654,-461.8,0.00022191,2]
[386580437,1758409840663,-400.0,0.00022191,2]
[386580438,1758409840673,-2064.86,0.00022191,2]
[386580439,1758409840682,-284.09064649,0.00022191,2]
[386580440,1758409840691,-404.42,0.00022191,2]
[386580441,1758409840701,-400.0,0.00022191,2]
[386580442,1758409840711,-1335.27,0.00022191,2]
[386580443,1758409840720,-400.0,0.00022191,2]
[386580444,1758409840730,-400.0,0.00022191,2]
[386580445,1758409840739,-1740.35,0.00022191,2]
[386580446,1758409840749,-443.25,0.00022191,2]
[386580449,1758409841043,-650.25,0.00022191,2]
[386580450,1758409841080,-630.4,0.00022191,2]
[386580451,1758409841090,-1242.65,0.00022191,2]
[386580452,1758409841102,-848.26,0.00022191,2]
[386580453,1758409841111,-507.71,0.00022191,2]
[386580454,1758409841120,-407.01,0.00022191,2]
[386580455,1758409841130,-824.36,0.00022191,2]
[386580456,1758409841139,-400.0,0.00022191,2]
[386580457,1758409841148,-400.0,0.00022191,2]
[386580458,1758409841158,-1123.52,0.00022191,2]
[386580459,1758409841167,-459.02,0.00022191,2]